bitfinex/quotes_BTCUSD_20250718
["timestamp","ask_amount","ask_price","bid_price","bid_amount"]
[1752869312726,0.0423,117270.0,117260.0,0.73589766]
[1752869313131,0.05082667,117270.0,117260.0,0.24711232]
[1752869313263,0.0423,117270.0,117260.0,0.24711232]
[1752869313459,0.0423,117270.0,117260.0,0.73589766]
[1752869313891,0.0423,117270.0,117260.0,0.82165728]
[1752869314921,0.0423,117270.0,117260.0,1.16165728]
[1752869315559,0.0423,117270.0,117260.0,0.58711232]
[1752869315774,0.0423,117270.0,117260.0,0.6726226]
[1752869317511,0.0373,117270.0,117260.0,0.6726226]
[1752869317718,0.00099999,117280.0,117270.0,0.5740277]
[1752869317929,0.00099999,117280.0,117270.0,0.7557777]
[1752869318149,0.00099999,117280.0,117270.0,1.41707294]
[1752869318614,0.00099999,117280.0,117270.0,0.9282876]
[1752869318852,0.00099999,117280.0,117270.0,1.41707294]
[1752869319084,0.00399999,117280.0,117270.0,1.41807294]
[1752869319751,0.00399999,117280.0,117270.0,0.66713732]
[1752869319992,0.00399999,117280.0,117270.0,0.84349732]
[1752869320649,0.00799999,117280.0,117270.0,0.66713732]
[1752869320853,0.00799999,117280.0,117270.0,1.33196266]
[1752869321280,0.00799999,117280.0,117270.0,0.84317732]
[1752869321725,0.00799999,117280.0,117270.0,0.5813777]
[1752869321932,0.07611698,117280.0,117270.0,0.5813777]
[1752869322141,0.08464292,117280.0,117270.0,0.5813777]
[1752869323009,0.11022162,117280.0,117270.0,0.2413777]
[1752869323432,0.76953961,117280.0,117270.0,0.21365096]
[1752869323654,0.28075427,117280.0,117270.0,0.23070481]
[1752869323856,0.05063182,117280.0,117270.0,0.23923163]
[1752869324068,0.20411163,117280.0,117270.0,0.21365103]
[1752869324292,0.20411163,117280.0,117270.0,0.22217814]
[1752869324478,0.20411163,117280.0,117270.0,0.23070517]
[1752869324693,0.27222862,117280.0,117270.0,0.20512385]
[1752869324892,0.26370217,117280.0,117270.0,0.20512385]
[1752869325137,0.27260187,117280.0,117270.0,0.21365096]
[1752869325364,0.27260187,117280.0,117270.0,0.20512385]
[1752869325571,0.20448488,117280.0,117270.0,0.20512385]
[1752869325795,0.20448488,117280.0,117270.0,0.21365103]
[1752869326012,0.20448488,117280.0,117270.0,0.22217806]
[1752869326269,0.20448488,117280.0,117270.0,0.23070495]
[1752869326913,0.20448488,117280.0,117270.0,0.22217814]
[1752869327132,0.20448488,117280.0,117270.0,0.21365103]
[1752869327977,0.20448488,117280.0,117270.0,0.22217814]
[1752869328159,0.19595835,117280.0,117270.0,0.1965966]
[1752869328417,0.68474369,117280.0,117270.0,0.1965966]
[1752869328620,0.77025397,117280.0,117270.0,0.00735]
[1752869329114,0.76172737,117280.0,117270.0,0.00735]
[1752869330142,0.29373203,117280.0,117270.0,0.00423]
[1752869330377,0.88662521,117280.0,117270.0,0.00224]
[1752869331045,0.32972288,117280.0,117270.0,0.00224]
[1752869331316,0.81850822,117280.0,117270.0,0.00224]
[1752869331543,0.88662521,117280.0,117270.0,0.00224]
[1752869331968,0.97238483,117280.0,117270.0,0.00224]
[1752869332169,0.48359949,117280.0,117270.0,0.00224]
[1752869332377,0.97238483,117280.0,117270.0,0.00224]
[1752869332639,0.902373,117280.0,117270.0,0.00224]
[1752869334907,0.83425601,117280.0,117270.0,0.00224]
[1752869335993,0.34547067,117280.0,117270.0,0.00224]
[1752869336214,0.81850822,117280.0,117270.0,0.00224]
[1752869336454,0.83425601,117280.0,117270.0,0.00224]
[1752869337536,0.34547067,117280.0,117270.0,0.00224]
[1752869337762,0.81850822,117280.0,117270.0,0.00224]
[1752869337991,0.94931516,117280.0,117270.0,0.00735]
[1752869338212,0.94931516,117280.0,117270.0,0.19495118]
[1752869338443,0.96881516,117280.0,117270.0,0.00735]
[1752869338663,0.96837516,117280.0,117270.0,0.00735]
[1752869339148,0.96839182,117280.0,117270.0,0.00735]
[1752869339349,0.96839182,117280.0,117270.0,0.18642393]
[1752869339983,0.47944648,117280.0,117270.0,0.00735]
[1752869340193,0.95455737,117280.0,117270.0,0.00423]
[1752869340413,0.48153648,117280.0,117270.0,0.00423]
[1752869340637,0.95455737,117280.0,117270.0,0.00423]
[1752869340865,1.07383808,117280.0,117270.0,0.00224]
[1752869341289,1.07384282,117280.0,117270.0,0.00224]
[1752869341765,0.51769207,117280.0,117270.0,0.00224]
[1752869341979,0.98486741,117280.0,117270.0,0.00438]
[1752869342404,1.00607741,117280.0,117270.0,0.00224]
[1752869343089,1.49486275,117280.0,117270.0,0.00224]
[1752869343337,1.00607741,117280.0,117270.0,0.00224]
[1752869344606,0.51729207,117280.0,117270.0,0.00224]
[1752869345064,1.00607741,117280.0,117270.0,0.00224]
[1752869346554,0.99030822,117280.0,117270.0,0.00224]
[1752869347422,0.50152288,117280.0,117270.0,0.00224]
[1752869347629,0.99030822,117280.0,117270.0,0.00224]
[1752869349700,1.59084162,117280.0,117270.0,0.00224]
[1752869349911,1.93084162,117280.0,117270.0,0.00224]
[1752869350341,0.86751132,117280.0,117270.0,0.00224]
[1752869350547,1.845082,117280.0,117270.0,0.00224]
[1752869350790,1.842082,117280.0,117270.0,0.00124]
[1752869351000,1.842082,117280.0,117270.0,0.00224]
[1752869351211,0.88227189,117280.0,117270.0,0.00224]
[1752869351425,1.85824257,117280.0,117270.0,0.00224]
[1752869351641,1.85424257,117280.0,117270.0,0.00224]
[1752869351890,1.85924257,117280.0,117270.0,0.00224]
[1752869352640,1.37045723,117280.0,117270.0,0.00224]
[1752869352852,1.39720197,117280.0,117270.0,0.00224]
[1752869353437,1.37045723,117280.0,117270.0,0.00224]
[1752869353857,1.20081723,117280.0,117270.0,0.00224]
[1752869354049,0.83355345,117280.0,117270.0,0.00438]
[1752869354253,1.32233879,117280.0,117270.0,0.00438]
[1752869354905,1.32235383,117280.0,117270.0,0.00438]
[1752869355113,0.98235383,117280.0,117270.0,0.00438]
[1752869355818,0.81363383,117280.0,117270.0,0.00438]
[1752869356034,0.98215383,117280.0,117270.0,0.00438]
[1752869356473,0.96637822,117280.0,117270.0,0.00438]
[1752869357060,0.47759288,117280.0,117270.0,0.00438]
[1752869357255,0.95747852,117280.0,117270.0,0.00438]
[1752869357533,0.46869318,117280.0,117270.0,0.00438]
[1752869357781,0.95747852,117280.0,117270.0,0.00438]
[1752869358017,0.48448349,117280.0,117270.0,0.00438]
[1752869358277,0.97771645,117280.0,117270.0,0.00438]
[1752869358704,0.98093722,117280.0,117270.0,0.00438]
[1752869358915,0.96513614,117280.0,117270.0,0.00438]
[1752869359135,0.96513614,117280.0,117270.0,0.00224]
[1752869359342,1.5573811,117280.0,117270.0,0.00224]
[1752869359759,0.71879997,117270.0,117260.0,0.0004]
[1752869359983,1.2334806,117270.0,117260.0,0.0004]
[1752869360363,1.16536361,117270.0,117260.0,0.0004]
[1752869361236,1.16636361,117270.0,117260.0,0.0024]
[1752869361446,0.76333789,117270.0,117260.0,0.0024]
[1752869361655,1.25212323,117270.0,117260.0,0.0024]
[1752869361868,0.76333789,117270.0,117260.0,0.0024]
[1752869362142,1.25212323,117270.0,117260.0,0.0024]
[1752869362360,0.67757827,117270.0,117260.0,0.0024]
[1752869362580,1.16636361,117270.0,117260.0,0.0024]
[1752869362793,0.67757827,117270.0,117260.0,0.0024]
[1752869363189,1.16636361,117270.0,117260.0,0.0024]
[1752869363392,1.25212323,117270.0,117260.0,0.0024]
[1752869363595,1.25612323,117270.0,117260.0,0.0024]
[1752869364894,0.76733789,117270.0,117260.0,0.0024]
[1752869365035,1.25612323,117270.0,117260.0,0.0024]
[1752869366222,0.68157827,117270.0,117260.0,0.0024]
[1752869366437,1.17036361,117270.0,117260.0,0.0024]
[1752869367774,1.17033681,117270.0,117260.0,0.0024]
[1752869368392,1.33705681,117270.0,117260.0,0.0024]
[1752869368609,0.84827147,117270.0,117260.0,0.0024]
[1752869368820,1.42281643,117270.0,117260.0,0.0024]
[1752869369443,0.93403109,117270.0,117260.0,0.0024]
[1752869369626,1.42281643,117270.0,117260.0,0.0024]
[1752869371230,1.33705681,117270.0,117260.0,0.0024]
[1752869371856,1.33705619,117270.0,117260.0,0.0024]
[1752869372850,0.84827085,117270.0,117260.0,0.0024]
[1752869373055,1.33705619,117270.0,117260.0,0.0024]
[1752869374766,1.33705665,117270.0,117260.0,0.0024]
[1752869374991,1.42281627,117270.0,117260.0,0.0024]
[1752869376770,1.41881627,117270.0,117260.0,0.0024]
[1752869376973,1.41781627,117270.0,117260.0,0.0004]
[1752869377226,1.42481627,117270.0,117260.0,0.0014]
[1752869377646,0.93603093,117270.0,117260.0,0.0014]
[1752869378045,1.42481627,117270.0,117260.0,0.0014]
[1752869380013,0.92603093,117270.0,117260.0,0.0014]
[1752869380214,1.42334345,117270.0,117260.0,0.0014]
[1752869381024,1.33758383,117270.0,117260.0,0.0014]
[1752869382767,1.17086383,117270.0,117260.0,0.0014]
[1752869382984,1.33394383,117270.0,117260.0,0.0014]
[1752869383866,0.84515849,117270.0,117260.0,0.0014]
[1752869384089,1.33394383,117270.0,117260.0,0.0014]
[1752869385020,1.35784149,117270.0,117260.0,0.0014]
[1752869385446,1.35684149,117270.0,117260.0,0.0014]
[1752869386606,1.33294383,117270.0,117260.0,0.0014]
[1752869390333,0.84415849,117270.0,117260.0,0.0014]
[1752869390544,1.33178383,117270.0,117260.0,0.0014]
[1752869390764,1.33130383,117270.0,117260.0,0.0014]
[1752869391060,0.84243849,117270.0,117260.0,0.0014]
[1752869391292,0.80078849,117270.0,117260.0,0.00655]
[1752869391516,0.45720757,117270.0,117260.0,0.04475]
[1752869391762,0.43290406,117270.0,117260.0,0.04475]
[1752869391969,0.10956428,117270.0,117260.0,0.24089442]
[1752869392184,0.18529363,117270.0,117260.0,0.72967976]
[1752869392462,0.16812,117270.0,117260.0,0.72967976]
[1752869392825,0.1851737,117270.0,117260.0,0.24089442]
[1752869393034,0.19370081,117270.0,117260.0,0.24089442]
[1752869393235,0.37277474,117270.0,117260.0,0.30959874]
[1752869393444,0.21165474,117270.0,117260.0,0.24089479]
[1752869393626,0.37269474,117270.0,117260.0,0.24089479]
[1752869393834,0.364168,117270.0,117260.0,0.24089479]
[1752869394371,0.35564104,117270.0,117260.0,0.23236703]
[1752869394773,0.34711393,117270.0,117260.0,0.23236703]
[1752869395391,0.34711393,117270.0,117260.0,0.24089486]
[1752869395977,0.34711393,117270.0,117260.0,0.23236703]
[1752869396207,0.3385866,117270.0,117260.0,0.22383912]
[1752869396377,0.3385866,117270.0,117260.0,0.23236703]
[1752869397402,0.34711378,117270.0,117260.0,0.32665434]
[1752869398255,0.18607378,117270.0,117260.0,0.04475]
[1752869398466,0.34591378,117270.0,117260.0,0.23236717]
[1752869398883,0.34591378,117270.0,117260.0,0.24089508]
[1752869399070,0.34591378,117270.0,117260.0,0.05327805]
[1752869399218,0.34591378,117270.0,117260.0,0.04475]
[1752869399622,0.83469912,117270.0,117260.0,0.04475]
[1752869399836,0.83469912,117270.0,117260.0,0.05327805]
[1752869400040,0.83469912,117270.0,117260.0,0.04475]
[1752869400451,0.34591378,117270.0,117260.0,0.04475]
[1752869400663,0.83469912,117270.0,117260.0,0.04475]
[1752869400875,0.92045874,117270.0,117260.0,0.04475]
[1752869401274,0.67485912,117270.0,117260.0,0.02525]
[1752869401506,0.9198494,117270.0,117260.0,0.02525]
[1752869401877,0.9198494,117270.0,117260.0,0.00655]
[1752869402274,0.43106406,117270.0,117260.0,0.02585]
[1752869402499,0.9198494,117270.0,117260.0,0.02585]
[1752869403491,0.9198494,117270.0,117260.0,0.00655]
[1752869404335,0.43106406,117270.0,117260.0,0.00655]
[1752869404547,0.9198494,117270.0,117260.0,0.00655]
[1752869406617,0.43106406,117270.0,117260.0,0.00655]
[1752869406822,0.9198494,117270.0,117260.0,0.00655]
[1752869407034,0.9413794,117270.0,117260.0,0.0014]
[1752869407245,0.97775025,117270.0,117260.0,0.0014]
[1752869409662,0.95592025,117270.0,117260.0,0.00345]
[1752869409888,0.79644025,117270.0,117260.0,0.00345]
[1752869410055,0.79644025,117270.0,117260.0,0.00645]
[1752869410056,0.9183294,117270.0,117260.0,0.00645]
[1752869410468,0.9616894,117270.0,117260.0,0.0014]
[1752869411210,0.9430894,117270.0,117260.0,0.0014]
[1752869413051,0.97643025,117270.0,117260.0,0.0014]
[1752869414804,0.97517319,117270.0,117260.0,0.0014]
[1752869414974,0.95314319,117270.0,117260.0,0.00345]
[1752869415993,0.95637319,117270.0,117260.0,0.0014]
[1752869417179,0.97417319,117270.0,117260.0,0.0014]
[1752869418185,0.48538785,117270.0,117260.0,0.0014]
[1752869418420,0.97417319,117270.0,117260.0,0.0014]
[1752869420390,1.1280498,117270.0,117260.0,0.0014]
[1752869421235,0.97417319,117270.0,117260.0,0.0014]
[1752869422056,0.48538785,117270.0,117260.0,0.0014]
[1752869422261,0.97417319,117270.0,117260.0,0.0014]
[1752869423361,0.79841319,117270.0,117260.0,0.0014]
[1752869423579,0.79518319,117270.0,117260.0,0.18253919]
[1752869423803,0.76512601,117270.0,117260.0,0.23279587]
[1752869424037,0.75058516,117270.0,117260.0,0.05370675]
[1752869424259,0.90658516,117270.0,117260.0,0.06357877]
[1752869424511,0.09977996,117270.0,117260.0,0.24079493]
[1752869424740,0.00574294,117270.0,117260.0,0.24932247]
[1752869424971,0.03132382,117270.0,117260.0,0.24932247]
[1752869425208,0.02279664,117270.0,117260.0,0.24932247]
[1752869425432,0.03985107,117270.0,117260.0,0.24932247]
[1752869426804,0.03132382,117270.0,117260.0,0.24932247]
[1752869427017,0.03132375,117270.0,117260.0,0.29217102]
[1752869427229,0.03985093,117270.0,117260.0,0.29217102]
[1752869427676,0.21039753,117270.0,117260.0,0.24932247]
[1752869427999,0.20187108,117270.0,117260.0,0.24079508]
[1752869428002,0.20187108,117270.0,117260.0,0.24932277]
[1752869428214,0.52010982,117270.0,117260.0,0.25784988]
[1752869428853,0.52863715,117270.0,117260.0,0.25784988]
[1752869429067,0.03132448,117270.0,117260.0,0.24932234]
[1752869429275,0.52010982,117270.0,117260.0,0.25784988]
[1752869429704,0.52863715,117270.0,117260.0,0.25784988]
[1752869430131,0.01426983,117270.0,117260.0,0.30069836]
[1752869430350,0.0227965,117270.0,117260.0,0.30069836]
[1752869430539,0.03132346,117270.0,117260.0,0.30069836]
[1752869430867,0.26998777,117270.0,117260.0,0.23226703]
[1752869431082,0.75877311,117270.0,117260.0,0.24079479]
[1752869431504,0.26998777,117270.0,117260.0,0.24079479]
[1752869431726,0.75877311,117270.0,117260.0,0.22952248]
[1752869431948,0.02279693,117270.0,117260.0,0.22952248]
[1752869432160,0.5286367,117270.0,117260.0,0.23805002]
[1752869432396,0.53716403,117270.0,117260.0,0.23805002]
[1752869432615,0.69918367,117270.0,117260.0,0.22952248]
[1752869433059,0.69918367,117270.0,117260.0,0.2380501]
[1752869433270,0.52863707,117270.0,117260.0,0.23804966]
[1752869433486,0.51158249,117270.0,117260.0,0.23804966]
[1752869433918,0.69065642,117270.0,117260.0,0.23804966]
[1752869434394,0.69065642,117270.0,117260.0,0.02485]
[1752869434626,1.01440666,117270.0,117260.0,0.00345]
[1752869434865,1.01440666,117270.0,117260.0,0.0014]
[1752869434866,1.47683713,117270.0,117260.0,0.0014]
[1752869435069,0.5725299,117260.0,117250.0,1e-08]
[1752869435277,1.14879552,117260.0,117250.0,1e-08]
[1752869435489,1.15182552,117260.0,117250.0,1e-08]
[1752869435609,1.23758514,117260.0,117250.0,1e-08]
[1752869436245,1.24158514,117260.0,117250.0,1e-08]
[1752869437333,0.18766475,117230.0,117220.0,0.00344]
[1752869437666,0.92049037,117230.0,117220.0,0.00543]
[1752869437869,0.93919037,117230.0,117220.0,0.00239]
[1752869438567,0.45049018,117230.0,117220.0,0.00239]
[1752869438775,0.93927552,117230.0,117220.0,0.00543]
[1752869438985,0.92157552,117230.0,117220.0,0.00643]
[1752869439405,0.92057552,117230.0,117220.0,0.00543]
[1752869439616,0.92060552,117230.0,117220.0,0.00543]
[1752869439855,0.92060552,117230.0,117220.0,0.1845803]
[1752869440077,0.91207565,117230.0,117220.0,0.1845803]
[1752869440229,0.91207565,117230.0,117220.0,0.00543]
[1752869440433,0.90354556,117230.0,117220.0,0.00543]
[1752869441432,0.41476022,117230.0,117220.0,0.00543]
[1752869441658,0.92154556,117230.0,117220.0,0.00543]
[1752869441869,0.95067274,117230.0,117220.0,0.00543]
[1752869442053,0.95264274,117230.0,117220.0,0.00543]
[1752869442703,0.92351556,117230.0,117220.0,0.00543]
[1752869442988,0.92654556,117230.0,117220.0,0.0004]
[1752869443638,0.43473022,117230.0,117220.0,0.00239]
[1752869443840,0.92351556,117230.0,117220.0,0.00239]
[1752869444273,0.92651556,117230.0,117220.0,0.18154023]
[1752869445637,0.43773022,117230.0,117220.0,0.19007105]
[1752869445909,0.95866591,117230.0,117220.0,0.24910621]
[1752869446332,0.95866591,117230.0,117220.0,0.24910635]
[1752869446531,0.95866591,117230.0,117220.0,0.21870306]
[1752869446718,0.95866591,117230.0,117220.0,0.2187027]
[1752869446954,0.28221502,117230.0,117220.0,0.21017188]
[1752869447235,0.28221502,117230.0,117220.0,0.23730233]
[1752869447236,0.76153009,117230.0,117220.0,0.23730233]
[1752869447449,0.94066504,117230.0,117220.0,0.20164135]
[1752869448167,0.93213539,117230.0,117220.0,0.19311104]
[1752869448381,0.46255005,117230.0,117220.0,0.19311104]
[1752869448585,0.29194526,117230.0,117220.0,0.21017202]
[1752869448809,0.46255005,117230.0,117220.0,0.20164157]
[1752869449017,0.95133539,117230.0,117220.0,0.20164171]
[1752869449231,0.94280566,117230.0,117220.0,0.20164171]
[1752869450020,0.45402032,117230.0,117220.0,0.20164171]
[1752869450258,0.94280566,117230.0,117220.0,0.1845803]
[1752869450468,0.93624572,117230.0,117220.0,0.20164201]
[1752869450668,0.93624572,117230.0,117220.0,0.21017275]
[1752869450987,0.77968572,117230.0,117220.0,0.21017275]
[1752869451193,0.93536572,117230.0,117220.0,0.21017275]
[1752869451491,0.44658038,117230.0,117220.0,0.21017275]
[1752869451640,0.93536572,117230.0,117220.0,0.21017275]
[1752869451844,0.44658038,117230.0,117220.0,0.21870306]
[1752869452048,0.77249087,117230.0,117220.0,0.2187027]
[1752869452313,0.75985053,117230.0,117220.0,0.25949601]
[1752869452514,0.27106519,117230.0,117220.0,0.25949601]
[1752869452720,0.93898555,117230.0,117220.0,0.25949601]
[1752869452929,0.2625351,117230.0,117220.0,0.25949601]
[1752869453140,0.75132044,117230.0,117220.0,0.25949601]
[1752869453345,0.93898548,117230.0,117220.0,0.25096556]
[1752869453639,0.93898548,117230.0,117220.0,0.21017188]
[1752869454066,0.93898548,117230.0,117220.0,0.19311104]
[1752869454248,0.75985046,117230.0,117220.0,0.20164171]
[1752869454452,0.93898548,117230.0,117220.0,0.20164171]
[1752869454957,0.93045575,117230.0,117220.0,0.20164171]
[1752869455173,0.93045575,117230.0,117220.0,0.24072926]
[1752869455412,0.94965575,117230.0,117220.0,0.20164171]
[1752869455812,0.77905096,117230.0,117220.0,0.21017224]
[1752869456217,0.28173539,117230.0,117220.0,0.21017224]
[1752869456416,0.94965575,117230.0,117220.0,0.21017224]
[1752869456632,0.75985082,117230.0,117220.0,0.21870269]
[1752869457261,0.76838098,117230.0,117220.0,0.21870269]
[1752869457467,0.947516,117230.0,117220.0,0.21017231]
[1752869457706,0.93898606,117230.0,117220.0,0.21017231]
[1752869457925,0.95728606,117230.0,117220.0,0.21870284]
[1752869458144,0.94875604,117230.0,117220.0,0.21017231]
[1752869458631,0.94022595,117230.0,117220.0,0.19311104]
[1752869458803,0.94219595,117230.0,117220.0,0.19292899]
[1752869459135,0.45341061,117230.0,117220.0,0.20145952]
[1752869459291,0.94219595,117230.0,117220.0,0.20145952]
[1752869459884,0.94219595,117230.0,117220.0,0.20145966]
[1752869460129,0.94219595,117230.0,117220.0,0.20999026]
[1752869460327,0.94219595,117230.0,117220.0,0.20145966]
[1752869460527,0.28280553,117230.0,117220.0,0.25758998]
[1752869460724,0.27230516,117230.0,117220.0,0.25758998]
[1752869460931,0.24547543,117230.0,117220.0,0.25758998]
[1752869461147,0.00508515,117230.0,117220.0,0.29408998]
[1752869461348,0.16072515,117230.0,117220.0,0.78287532]
[1752869462179,0.16072515,117230.0,117220.0,0.29408998]
[1752869462778,0.16072515,117230.0,117220.0,0.78287532]
[1752869463027,0.00508515,117230.0,117220.0,0.78287532]
[1752869464108,0.00508515,117230.0,117220.0,0.25502064]
[1752869464477,0.127783,117240.0,117230.0,0.21559462]
[1752869464678,0.01705785,117240.0,117230.0,0.22123438]
[1752869465129,0.72107089,117250.0,117240.0,0.19617789]
[1752869465347,0.02902769,117260.0,117250.0,0.19616116]
[1752869465555,0.26673327,117260.0,117250.0,0.24371309]
[1752869465762,0.16416747,117260.0,117250.0,0.24371309]
[1752869465985,0.15564,117260.0,117250.0,0.26311309]
[1752869466193,0.16416776,117260.0,117250.0,0.28201309]
[1752869466396,0.52289667,117260.0,117250.0,0.20130116]
[1752869466525,0.66996855,117260.0,117250.0,0.20130116]
[1752869466726,0.66144064,117260.0,117250.0,0.20130116]
[1752869467030,0.68555215,117260.0,117250.0,0.00614]
[1752869467243,0.37739479,117260.0,117250.0,0.1906431]
[1752869467466,0.86218013,117260.0,117250.0,0.20670015]
[1752869467685,0.86418013,117260.0,117250.0,0.20670015]
[1752869467901,0.20783365,117260.0,117250.0,0.21622849]
[1752869468116,0.03517747,117260.0,117250.0,0.21622798]
[1752869468329,0.54101841,117260.0,117250.0,0.21935798]
[1752869468551,0.05223307,117260.0,117250.0,0.21935798]
[1752869468727,0.72010753,117260.0,117250.0,0.19917137]
[1752869468982,0.72010753,117260.0,117250.0,0.19064288]
[1752869469402,0.71158006,117260.0,117250.0,0.19064288]
[1752869469617,0.23246703,117260.0,117250.0,0.18211447]
[1752869470052,0.04370589,117260.0,117250.0,0.2469292]
[1752869470271,0.03302747,117260.0,117250.0,0.2500592]
[1752869470491,0.01352747,117260.0,117250.0,0.2500592]
[1752869470708,0.02205501,117260.0,117250.0,0.2686592]
[1752869470924,0.03911061,117260.0,117250.0,0.2500592]
[1752869471165,0.03911053,117260.0,117250.0,0.21082994]
[1752869471394,0.0305827,117260.0,117250.0,0.21082994]
[1752869471607,0.01352747,117260.0,117250.0,0.23022994]
[1752869471819,0.01352747,117260.0,117250.0,0.24882994]
[1752869472036,0.01352747,117260.0,117250.0,0.23022994]
[1752869472256,0.01352747,117260.0,117250.0,0.31598956]
[1752869472257,0.005,117260.0,117250.0,0.31598956]
[1752869472518,0.005,117260.0,117250.0,0.33458956]
[1752869472736,0.01352754,117260.0,117250.0,0.33458956]
[1752869472976,0.01352754,117260.0,117250.0,0.24882994]
[1752869473202,0.38936401,117260.0,117250.0,0.001]
[1752869473415,1.03374935,117260.0,117250.0,0.001]
[1752869473845,0.0599556,117260.0,117250.0,0.17671569]
[1752869474063,0.69432899,117260.0,117250.0,0.18524432]
[1752869474278,0.86488955,117260.0,117250.0,0.00614]
[1752869474491,0.86488955,117260.0,117250.0,0.17671569]
[1752869474706,0.86703955,117260.0,117250.0,0.19377288]
[1752869474927,0.37825421,117260.0,117250.0,0.19917137]
[1752869475133,0.86703955,117260.0,117250.0,0.20769979]
[1752869475340,0.37825421,117260.0,117250.0,0.20769979]
[1752869475572,0.05213307,117260.0,117250.0,0.25522291]
[1752869475786,0.17761501,117260.0,117250.0,0.23755806]
[1752869475995,0.16056,117260.0,117250.0,0.23755806]
[1752869476209,0.17761516,117260.0,117250.0,0.23755806]
[1752869476456,0.16908747,117260.0,117250.0,0.23755806]
[1752869476684,0.19467069,117260.0,117250.0,0.23755806]
[1752869476900,0.19467069,117260.0,117250.0,0.32331768]
[1752869477116,0.19467069,117260.0,117250.0,0.23755806]
[1752869477324,0.20319925,117260.0,117250.0,0.22902979]
[1752869477508,0.1946712,117260.0,117250.0,0.22902979]
[1752869477762,0.37376039,117260.0,117250.0,0.21082979]
[1752869477909,0.38363277,117260.0,117250.0,0.21082979]
[1752869478318,0.38578277,117260.0,117250.0,0.21935813]
[1752869478520,0.21307163,117260.0,117250.0,0.21935813]
[1752869478868,0.36657717,117260.0,117250.0,0.17671569]
[1752869479084,0.36872717,117260.0,117250.0,0.1821144]
[1752869479485,0.38782717,117260.0,117250.0,0.1821144]
[1752869479696,0.36872717,117260.0,117250.0,0.19917138]
[1752869480335,0.36872717,117260.0,117250.0,0.20769972]
[1752869480548,0.36872717,117260.0,117250.0,0.19064296]
[1752869480975,0.1776153,117260.0,117250.0,0.21082994]
[1752869481183,0.19467119,117260.0,117250.0,0.21082994]
[1752869481412,0.38373233,117260.0,117250.0,0.20230167]
[1752869481634,0.38373233,117260.0,117250.0,0.21083009]
[1752869481848,0.18758754,117260.0,117250.0,0.21935792]
[1752869482053,0.21317097,117260.0,117250.0,0.30511754]
[1752869482471,0.2131709,117260.0,117250.0,0.21082965]
[1752869482682,0.39226009,117260.0,117250.0,0.21082965]
[1752869482898,0.38373255,117260.0,117250.0,0.20230131]
[1752869483116,0.38373255,117260.0,117250.0,0.21082958]
[1752869483748,0.18758747,117260.0,117250.0,0.21082958]
[1752869483963,0.17761501,117260.0,117250.0,0.25086153]
[1752869484188,0.16056,117260.0,117250.0,0.26976153]
[1752869484403,0.005,117260.0,117250.0,0.91410687]
[1752869484608,0.15556,117270.0,117260.0,0.20651615]
[1752869484819,0.00999902,117280.0,117270.0,0.1961277]
[1752869485035,0.00999902,117280.0,117270.0,0.81371266]
[1752869485243,0.16555902,117280.0,117270.0,0.32492732]
[1752869485460,0.16555902,117280.0,117270.0,0.72795304]
[1752869485680,0.16555902,117280.0,117270.0,0.2207677]
[1752869485895,0.17408511,117280.0,117270.0,0.2207677]
[1752869486114,0.02705127,117280.0,117270.0,0.20376746]
[1752869486336,0.19213758,117280.0,117270.0,0.20376746]
[1752869486560,0.20366403,117280.0,117270.0,0.20476746]
[1752869486771,0.19513758,117280.0,117270.0,0.20476746]
[1752869487399,0.18613855,117280.0,117270.0,0.20476746]
[1752869487616,0.17761224,117280.0,117270.0,0.20476746]
[1752869488274,0.18613862,117280.0,117270.0,0.20476746]
[1752869488481,0.18613855,117280.0,117270.0,0.20476746]
[1752869488694,0.17761224,117280.0,117270.0,0.29052708]
[1752869488925,0.17761224,117280.0,117270.0,0.20476746]
[1752869488926,0.18613855,117280.0,117270.0,0.20476746]
[1752869489580,0.194665,117280.0,117270.0,0.20476746]
[1752869489758,0.88105015,117280.0,117270.0,0.00349976]
[1752869490522,0.39226481,117280.0,117270.0,0.00349976]
[1752869490708,0.39226481,117280.0,117270.0,0.17404636]
[1752869490964,0.88105015,117280.0,117270.0,0.00349976]
[1752869491560,0.88105015,117280.0,117270.0,0.18257369]
[1752869491772,0.87798015,117280.0,117270.0,0.19962797]
[1752869491980,0.38919481,117280.0,117270.0,0.19962797]
[1752869492118,0.87798015,117280.0,117270.0,0.19962812]
[1752869492315,0.86945384,117280.0,117270.0,0.19962812]
[1752869492547,0.3806685,117280.0,117270.0,0.18257369]
[1752869492750,0.38407131,117280.0,117270.0,0.00349976]
[1752869492954,1.02648392,117280.0,117270.0,0.00349976]
[1752869493164,1.46678439,117280.0,117270.0,0.00349976]
[1752869493333,1.38102477,117280.0,117270.0,0.00349976]
[1752869493558,1.71425011,117280.0,117270.0,0.00349976]
[1752869493816,1.86973011,117280.0,117270.0,0.00349976]
[1752869494650,0.89215943,117280.0,117270.0,0.00349976]
[1752869494854,1.86973011,117280.0,117270.0,0.00349976]
[1752869495478,1.95548973,117280.0,117270.0,0.00349976]
[1752869496705,0.97791905,117280.0,117270.0,0.00349976]
[1752869496909,1.95548973,117280.0,117270.0,0.00349976]
[1752869499728,1.80161312,117280.0,117270.0,0.00349976]
[1752869500669,0.82404244,117280.0,117270.0,0.00349976]
[1752869500814,1.80161312,117280.0,117270.0,0.00349976]
[1752869501015,1.80157312,117280.0,117270.0,0.00349976]
[1752869505875,0.66856244,117280.0,117270.0,0.00349976]
[1752869506027,1.15734778,117280.0,117270.0,0.00349976]
[1752869506241,1.31274778,117280.0,117270.0,0.00349976]
[1752869506443,0.27001159,117280.0,117270.0,0.18774354]
[1752869506663,0.42541159,117280.0,117270.0,0.00866976]
[1752869506891,0.42541159,117280.0,117270.0,0.22140493]
[1752869507060,0.26340576,117280.0,117270.0,0.23845892]
[1752869507263,0.45951682,117280.0,117270.0,0.25675892]
[1752869507484,0.28045816,117280.0,117270.0,0.25675892]
[1752869507700,0.28045816,117280.0,117270.0,0.2597516]
[1752869507701,0.03102143,117280.0,117270.0,0.2597516]
[1752869507853,0.18638143,117280.0,117270.0,0.2597516]
[1752869508055,0.20343411,117280.0,117270.0,0.2597516]
[1752869508372,0.36544015,117280.0,117270.0,0.19751636]
[1752869508584,0.85062665,117280.0,117270.0,0.00547976]
[1752869508794,0.97153778,117280.0,117270.0,0.00349976]
[1752869509207,1.88608274,117280.0,117270.0,0.00349976]
[1752869509416,1.31153778,117280.0,117270.0,0.00349976]
[1752869509661,1.31153778,117280.0,117270.0,0.00249976]
[1752869509662,1.79732312,117280.0,117270.0,0.00249976]
[1752869509997,1.79632312,117280.0,117270.0,0.00049976]
[1752869510310,1.30953778,117280.0,117270.0,0.00349976]
[1752869512233,1.79832312,117280.0,117270.0,0.00349976]
[1752869516738,1.88408274,117280.0,117270.0,0.00349976]